fUST/lending_fUST_20240628
["ID","MTS","AMOUNT","RATE_DAILY","PERIOD"]
[330499832,1719519040161,-153.0,0.00043562,2]
[330499833,1719519040172,-153.0,0.00043562,2]
[330499834,1719519040182,-153.0,0.00043562,2]
[330499835,1719519040192,-153.0,0.00043562,2]
[330499836,1719519040202,-153.0,0.00043562,2]
[330499837,1719519040213,-153.0,0.00043562,2]
[330499838,1719519040223,-153.0,0.00043562,2]
[330499839,1719519040233,-153.0,0.00043562,2]
[330499840,1719519040244,-153.0,0.00043562,2]
[330499841,1719519040255,-153.0,0.00043562,2]
[330499842,1719519040265,-153.0,0.00043562,2]
[330499843,1719519040276,-153.0,0.00043562,2]
[330499844,1719519040287,-153.0,0.00043562,2]
[330499845,1719519040297,-153.0,0.00043562,2]
[330499846,1719519040312,-300.0,0.00043633,7]
[330499847,1719519040323,-308.47949848,0.00043634,7]
[330499848,1719519040334,-586.2605556,0.00043671,2]
[330499849,1719519040345,-500.0,0.000437,45]
[330499850,1719519040356,-500.0,0.000437,45]
[330499851,1719519040367,-736.82898711,0.0004375,2]
[330499852,1719519040378,-252.0,0.000438,19]
[330499853,1719519040390,-159.78,0.00043824,7]
[330499854,1719519040403,-159.78,0.00043824,7]
[330499855,1719519040414,-159.78,0.00043824,7]
[330499856,1719519040425,-159.78,0.00043824,7]
[330499857,1719519040437,-159.78,0.00043824,7]
[330499858,1719519040447,-159.78,0.00043824,7]
[330499859,1719519040457,-159.78,0.00043824,7]
[330499860,1719519040467,-71069.13312871,0.00043825,5]
[330499861,1719519040738,-35496.11723431,0.00043825,5]
[330499862,1719519040750,-1078.23671621,0.00043825,5]
[330499863,1719519041351,-5100.24749868,0.00029901,2]
[330499864,1719519041360,-154.82195475,0.00034602,4]
[330499865,1719519041370,-502.40714426,0.00034999,2]
[330499866,1719519041380,-154.82195475,0.00036229,4]
[330499867,1719519041392,-9719.04163977,0.00043825,5]
[330499868,1719519041403,-151.0,0.00043834,14]
[330499869,1719519041413,-500.0,0.00043835,120]
[330499870,1719519041422,-500.0,0.00043835,120]
[330499871,1719519041432,-180.90001,0.00043835,120]
[330499872,1719519041441,-500.0,0.00043835,120]
[330499873,1719519041451,-500.0,0.00043835,8]
[330499874,1719519041461,-500.0,0.00043835,120]
[330499875,1719519041470,-500.0,0.00043835,120]
[330499876,1719519041480,-500.0,0.00043835,120]
[330499877,1719519041490,-500.0,0.00043835,120]
[330499878,1719519041499,-507.59606671,0.00043835,120]
[330499879,1719519041510,-503.02880471,0.00043835,7]
[330499880,1719519041519,-500.0,0.00043835,120]
[330499881,1719519041528,-500.0,0.00043835,120]
[330499882,1719519041539,-532.76736853,0.00043835,120]
[330499883,1719519041549,-236.32967945,0.00043835,120]
[330499884,1719519041559,-500.0,0.00043835,120]
[330499885,1719519041569,-500.0,0.00043835,120]
[330499886,1719519041578,-500.0,0.00043835,120]
[330499887,1719519041588,-500.0,0.00043835,120]
[330499888,1719519041598,-631.73114616,0.00043835,120]
[330499889,1719519041609,-399.21610048,0.00043835,120]
[330499890,1719519041618,-492.46136583,0.00043835,120]
[330499906,1719519043093,-2016.1,0.00042739,3]
[330499907,1719519043102,-7.53863417,0.00043835,120]
[330499908,1719519043112,-616.13413127,0.00043835,120]
[330499909,1719519043122,-449.87781235,0.00043835,120]
[330499910,1719519043131,-501.37143738,0.00043835,120]
[330499911,1719519043141,-500.0,0.00043835,120]
[330499912,1719519043152,-500.0,0.00043835,120]
[330499913,1719519043161,-500.64401278,0.00043835,120]
[330499914,1719519043170,-500.0,0.00043835,120]
[330499915,1719519043179,-500.0,0.00043835,120]
[330499916,1719519043189,-500.0,0.00043835,120]
[330499917,1719519043199,-500.0,0.00043835,120]
[330499918,1719519043208,-500.0,0.00043835,120]
[330499919,1719519043217,-500.0,0.00043835,120]
[330499920,1719519043226,-500.0,0.00043835,120]
[330499921,1719519043236,-500.0,0.00043835,120]
[330499922,1719519043245,-513.15,0.00043835,120]
[330499923,1719519043254,-500.0,0.00043835,120]
[330499924,1719519043264,-500.0,0.00043835,120]
[330499925,1719519043273,-250.0,0.00043835,120]
[330499926,1719519043282,-151.0,0.00043835,14]
[330499927,1719519043291,-200.0,0.00043835,7]
[330499928,1719519043300,-348.79251217,0.00043835,120]
[330499929,1719519043313,-500.0,0.00043835,120]
[330499930,1719519043322,-1320.67,0.00043835,120]
[330499931,1719519043331,-543.14,0.00043835,120]
[330499932,1719519043341,-224.72232243,0.00043835,120]
[330499933,1719519043351,-500.0,0.00043835,120]
[330499934,1719519043361,-500.0,0.00043835,120]
[330499935,1719519043370,-500.0,0.00043835,120]
[330499936,1719519043380,-500.0,0.00043835,2]
[330499937,1719519043391,-500.0,0.00043835,120]
[330499938,1719519043401,-500.0,0.00043835,2]
[330499939,1719519043411,-500.0,0.00043835,120]
[330499940,1719519043421,-500.0,0.00043835,120]
[330499941,1719519043430,-500.0,0.00043835,120]
[330499942,1719519043439,-500.0,0.00043835,120]
[330499943,1719519043448,-500.0,0.00043835,120]
[330499944,1719519043458,-517.32153172,0.00043835,120]
[330499945,1719519043467,-500.0,0.00043835,120]
[330499946,1719519043476,-1032.27,0.00043835,120]
[330499947,1719519043485,-500.0,0.00043835,120]
[330499948,1719519043494,-806.37,0.00043835,120]
[330499949,1719519043504,-500.0,0.00043835,120]
[330499950,1719519043515,-500.0,0.00043835,120]
[330499951,1719519043524,-500.0,0.00043835,120]
[330499952,1719519043533,-552.23922532,0.00043835,120]
[330499953,1719519043542,-423.40145107,0.00043835,120]
[330499954,1719519043551,-500.0,0.00043835,120]
[330499955,1719519043560,-500.0,0.00043835,120]
[330499956,1719519043570,-500.0,0.00043835,120]
[330499957,1719519043579,-500.0,0.00043835,120]
[330499958,1719519043588,-500.0,0.00043835,120]
[330499959,1719519043598,-500.0,0.00043835,120]
[330499960,1719519043607,-503.97567034,0.00043835,120]
[330499961,1719519043616,-482.68799796,0.00043835,120]
[330499962,1719519043625,-500.0,0.00043835,120]
[330499963,1719519043635,-639.35,0.00043835,120]
[330499964,1719519043643,-500.0,0.00043835,120]
[330499965,1719519043652,-500.0,0.00043835,30]
[330499966,1719519043661,-500.0,0.00043835,120]
[330499967,1719519043671,-606.13,0.00043835,120]
[330499968,1719519043680,-500.0,0.00043835,120]
[330499969,1719519043690,-500.0,0.00043835,120]
[330499970,1719519043700,-500.0,0.00043835,120]
[330499971,1719519043710,-500.0,0.00043835,120]
[330499972,1719519043719,-1705.35,0.00043835,120]
[330499973,1719519043728,-500.0,0.00043835,120]
[330499974,1719519043737,-500.0,0.00043835,120]
[330499975,1719519043748,-500.0,0.00043835,120]
[330499977,1719519043757,-500.0,0.00043835,120]
[330499979,1719519043766,-365.17085873,0.00043835,120]
[330499981,1719519043776,-507.81009055,0.00043835,120]
[330499983,1719519043785,-500.0,0.00043835,120]
[330499984,1719519043795,-500.0,0.00043835,120]
[330499985,1719519043804,-500.0,0.00043835,120]
[330499986,1719519043813,-500.0,0.00043835,120]
[330499987,1719519043822,-501.98773682,0.00043835,120]
[330499988,1719519043831,-502.2929617,0.00043835,120]
[330499989,1719519043840,-500.0,0.00043835,120]
[330499990,1719519043849,-500.0,0.00043835,120]
[330499991,1719519043859,-500.0,0.00043835,120]
[330499992,1719519043868,-500.0,0.00043835,30]
[330499993,1719519043877,-500.0,0.00043835,120]
[330499994,1719519043886,-500.0,0.00043835,120]
[330499995,1719519043895,-500.0,0.00043835,120]
[330499996,1719519043906,-151.0,0.00043835,14]
[330499997,1719519043915,-500.0,0.00043835,7]
[330499998,1719519043923,-500.0,0.00043835,120]
[330499999,1719519043933,-1043.04307048,0.00043835,120]
[330500000,1719519043942,-509.95,0.00043835,120]
[330500001,1719519043951,-576.22,0.00043835,120]
[330500002,1719519043960,-500.0,0.00043835,120]
[330500003,1719519043969,-500.0,0.00043835,120]
[330500004,1719519043978,-500.0,0.00043835,3]
[330500005,1719519043987,-500.0,0.00043835,120]
[330500006,1719519043995,-355.29029018,0.00043835,120]
[330500007,1719519044005,-500.0,0.00043835,120]
[330500008,1719519044014,-500.0,0.00043835,120]
[330500009,1719519044023,-500.0,0.00043835,120]
[330500010,1719519044032,-500.0,0.00043835,120]
[330500011,1719519044042,-516.18520944,0.00043835,120]
[330500012,1719519044052,-500.0,0.00043835,120]
[330500013,1719519044061,-1008.75,0.00043835,120]
[330500014,1719519044072,-500.0,0.00043835,30]
[330500015,1719519044082,-500.0,0.00043835,120]
[330500016,1719519044091,-500.0,0.00043835,120]
[330500017,1719519044100,-500.0,0.00043835,120]
[330500018,1719519044109,-500.0,0.00043835,120]
[330500019,1719519044118,-500.0,0.00043835,2]
[330500020,1719519044127,-560.41572552,0.00043835,120]
[330500021,1719519044136,-500.0,0.00043835,120]
[330500022,1719519044145,-500.0,0.00043835,120]
[330500023,1719519044156,-500.0,0.00043835,120]
[330500024,1719519044165,-1167.59,0.00043835,120]
[330500025,1719519044175,-722.06,0.00043835,120]
[330500026,1719519044184,-500.0,0.00043835,30]
[330500027,1719519044194,-500.0,0.00043835,120]
[330500028,1719519044203,-500.0,0.00043835,120]
[330500029,1719519044212,-500.0,0.00043835,120]
[330500030,1719519044222,-500.0,0.00043835,120]
[330500031,1719519044231,-500.0,0.00043835,120]
[330500032,1719519044240,-500.0,0.00043835,120]
[330500033,1719519044249,-500.0,0.00043835,120]
[330500034,1719519044258,-500.0,0.00043835,120]
[330500035,1719519044267,-500.0,0.00043835,120]
[330500036,1719519044276,-500.0,0.00043835,120]
[330500037,1719519044285,-500.0,0.00043835,120]
[330500038,1719519044294,-241.22795915,0.00043835,120]
[330500039,1719519044304,-500.0,0.00043835,120]
[330500040,1719519044318,-500.0,0.00043835,120]
[330500041,1719519044326,-500.0,0.00043835,120]
[330500042,1719519044335,-500.0,0.00043835,120]
[330500043,1719519044344,-500.0,0.00043835,120]
[330500044,1719519044354,-500.0,0.00043835,120]
[330500045,1719519044363,-167.29815282,0.00043835,120]
[330500046,1719519044372,-206.28176155,0.00043835,120]
[330500047,1719519044381,-500.0,0.00043835,120]
[330500048,1719519044393,-500.0,0.00043835,120]
[330500049,1719519044403,-500.0,0.00043835,120]
[330500050,1719519044412,-500.0,0.00043835,120]
[330500051,1719519044422,-675.31,0.00043835,120]
[330500052,1719519044431,-500.0,0.00043835,120]
[330500053,1719519044440,-500.0,0.00043835,120]
[330500054,1719519044449,-502.68740305,0.00043835,120]
[330500055,1719519044459,-500.0,0.00043835,120]
[330500056,1719519044468,-500.0,0.00043835,120]
[330500057,1719519044476,-500.0,0.00043835,120]
[330500058,1719519044486,-500.0,0.00043835,120]
[330500059,1719519044495,-500.0,0.00043835,120]
[330500060,1719519044504,-500.0,0.00043835,120]
[330500061,1719519044514,-500.0,0.00043835,120]
[330500062,1719519044523,-500.0,0.00043835,120]
[330500063,1719519044533,-500.0,0.00043835,120]
[330500064,1719519044542,-517.11,0.00043835,120]
[330500065,1719519044551,-500.0,0.00043835,120]
[330500066,1719519044560,-500.0,0.00043835,120]
[330500067,1719519044571,-151.0,0.00043835,14]
[330500068,1719519044580,-151.0,0.00043835,14]
[330500069,1719519044590,-151.0,0.00043835,14]
[330500070,1719519044600,-189.723276,0.00043835,14]
[330500071,1719519044609,-325.33615447,0.00043835,120]
[330500072,1719519044619,-249.33279996,0.00043835,120]
[330500073,1719519044629,-604.07,0.00043835,120]
[330500074,1719519044639,-501.09187047,0.00043835,120]
[330500075,1719519044648,-500.0,0.00043835,120]
[330500076,1719519044659,-500.0,0.00043835,2]
[330500077,1719519044669,-500.0,0.00043835,120]
[330500078,1719519044678,-500.0,0.00043835,120]
[330500079,1719519044688,-500.0,0.00043835,120]
[330500080,1719519044698,-501.51325185,0.00043835,120]
[330500081,1719519044707,-500.0,0.00043835,120]
[330500082,1719519044717,-504.61406637,0.00043835,120]
[330500083,1719519044727,-519.33371536,0.00043835,120]
[330500084,1719519044736,-500.0,0.00043835,120]
[330500085,1719519044746,-500.0,0.00043835,120]
[330500086,1719519044756,-500.0,0.00043835,120]
[330500087,1719519044767,-500.0,0.00043835,120]
[330500088,1719519044776,-500.0,0.00043835,120]
[330500089,1719519044786,-500.0,0.00043835,120]
[330500090,1719519044796,-500.0,0.00043835,7]
[330500091,1719519044806,-500.0,0.00043835,120]
[330500092,1719519044816,-500.0,0.00043835,120]
[330500093,1719519044825,-924.41,0.00043835,120]
[330500094,1719519044835,-318.33381006,0.00043835,120]
[330500095,1719519044844,-528.4036792,0.00043835,120]
[330500096,1719519044854,-500.0,0.00043835,120]
[330500097,1719519044863,-500.0,0.00043835,120]
[330500098,1719519044873,-500.0,0.00043835,120]
[330500099,1719519044882,-500.0,0.00043835,120]
[330500100,1719519044892,-500.0,0.00043835,120]
[330500101,1719519044901,-501.30064276,0.00043835,120]
[330500102,1719519044910,-526.5,0.00043835,120]
[330500103,1719519044920,-500.0,0.00043835,120]
[330500104,1719519044930,-500.0,0.00043835,120]
[330500105,1719519044940,-500.0,0.00043835,120]
[330500106,1719519044949,-639.94,0.00043835,120]
[330500107,1719519044959,-682.24,0.00043835,120]
[330500108,1719519044970,-990.87,0.00043835,120]
[330500109,1719519044980,-500.0,0.00043835,120]
[330500110,1719519044989,-1492.4,0.00043835,120]
[330500111,1719519044999,-1002.26,0.00043835,120]
[330500112,1719519045008,-507.00112417,0.00043835,120]
[330500113,1719519045018,-638.23,0.00043835,120]
[330500114,1719519045027,-500.0,0.00043835,120]
[330500115,1719519045037,-500.0,0.00043835,120]
[330500116,1719519045046,-500.0,0.00043835,120]
[330500117,1719519045056,-500.53157677,0.00043835,120]
[330500118,1719519045066,-500.0,0.00043835,120]
[330500119,1719519045075,-500.0,0.00043835,120]
[330500120,1719519045084,-920.01,0.00043835,120]
[330500121,1719519045191,-8569.73,0.00043835,120]
[330500122,1719519045201,-500.0,0.00043835,120]
[330500123,1719519045211,-500.0,0.00043835,120]
[330500124,1719519045220,-500.0,0.00043835,120]
[330500125,1719519045230,-500.0,0.00043835,120]
[330500126,1719519045239,-500.0,0.00043835,120]
[330500127,1719519045248,-500.0,0.00043835,120]
[330500128,1719519045258,-500.0,0.00043835,120]
[330500129,1719519045267,-500.0,0.00043835,120]
[330500130,1719519045276,-609.35,0.00043835,120]
[330500131,1719519045286,-500.0,0.00043835,120]
[330500132,1719519045296,-500.0,0.00043835,120]
[330500133,1719519045308,-500.0,0.00043835,120]
[330500134,1719519045320,-500.0,0.00043835,120]
[330500135,1719519045330,-151.0,0.00043835,14]
[330500136,1719519045339,-500.0,0.00043835,120]
[330500137,1719519045348,-500.0,0.00043835,120]
[330500138,1719519045358,-500.0,0.00043835,20]
[330500139,1719519045368,-500.0,0.00043835,120]
[330500140,1719519045377,-500.0,0.00043835,120]
[330500141,1719519045387,-500.0,0.00043835,120]
[330500142,1719519045399,-500.0,0.00043835,120]
[330500143,1719519045411,-500.0,0.00043835,120]
[330500144,1719519045421,-500.0,0.00043835,120]
[330500145,1719519045430,-500.0,0.00043835,120]
[330500146,1719519045439,-2128.69,0.00043835,120]
[330500147,1719519045448,-775.28,0.00043835,120]
[330500148,1719519045456,-500.0,0.00043835,120]
[330500149,1719519045466,-512.78,0.00043835,120]
[330500151,1719519045475,-500.0,0.00043835,120]
[330500152,1719519045485,-500.0,0.00043835,120]
[330500153,1719519045494,-500.0,0.00043835,120]
[330500154,1719519045505,-500.0,0.00043835,120]
[330500156,1719519045515,-500.0,0.00043835,120]
[330500158,1719519045524,-500.0,0.00043835,120]
[330500159,1719519045534,-500.0,0.00043835,120]
[330500160,1719519045543,-500.0,0.00043835,120]
[330500161,1719519045552,-500.0,0.00043835,120]
[330500162,1719519045563,-516.16448904,0.00043835,120]
[330500163,1719519045572,-500.0,0.00043835,120]
[330500164,1719519045581,-500.0,0.00043835,120]
[330500165,1719519045590,-500.0,0.00043835,120]
[330500166,1719519045600,-500.0,0.00043835,120]
[330500167,1719519045610,-672.26,0.00043835,2]
[330500169,1719519045620,-521.8,0.00043835,120]
[330500170,1719519045629,-500.0,0.00043835,120]
[330500171,1719519045639,-500.0,0.00043835,120]
[330500172,1719519045648,-500.0,0.00043835,120]
[330500173,1719519045661,-229.36790678,0.00043835,120]
[330500174,1719519045671,-151.0,0.00043835,14]
[330500175,1719519045684,-500.0,0.00043835,120]
[330500176,1719519045694,-931.65,0.00043835,120]
[330500177,1719519045704,-500.0,0.00043835,120]
[330500178,1719519045714,-500.0,0.00043835,120]
[330500180,1719519045724,-500.0,0.00043835,120]
[330500182,1719519045733,-215.96826401,0.00043835,120]
[330500185,1719519045743,-500.0,0.00043835,120]
[330500187,1719519045752,-740.1,0.00043835,120]
[330500190,1719519045762,-500.0,0.00043835,120]
[330500193,1719519045771,-515.69,0.00043835,120]
[330500195,1719519045780,-500.0,0.00043835,120]
[330500196,1719519045790,-500.0,0.00043835,120]
[330500199,1719519045800,-500.0,0.00043835,120]
[330500202,1719519045810,-508.53481663,0.00043835,120]
[330500203,1719519045820,-500.0,0.00043835,120]
[330500204,1719519045829,-500.0,0.00043835,120]
[330500205,1719519045840,-500.0,0.00043835,120]
[330500206,1719519045850,-533.38198936,0.00043835,120]
[330500207,1719519045859,-521.25063271,0.00043835,120]
[330500208,1719519045869,-797.65,0.00043835,120]
[330500209,1719519045878,-500.0,0.00043835,120]
[330500210,1719519045888,-500.0,0.00043835,120]
[330500211,1719519045898,-464.76147257,0.00043835,120]
[330500212,1719519045908,-500.0,0.00043835,120]
[330500214,1719519045918,-500.0,0.00043835,120]
[330500216,1719519045927,-151.0,0.00043835,14]
[330500218,1719519045936,-151.0,0.00043835,14]
[330500219,1719519045945,-151.0,0.00043835,14]
[330500220,1719519045955,-151.0,0.00043835,14]
[330500221,1719519045965,-151.0,0.00043835,14]
[330500222,1719519045974,-151.0,0.00043835,14]
[330500223,1719519045983,-500.0,0.00043835,120]
[330500225,1719519045992,-500.0,0.00043835,120]
[330500227,1719519046002,-500.0,0.00043835,120]
[330500228,1719519046012,-500.0,0.00043835,120]
[330500229,1719519046021,-151.0,0.00043835,14]
[330500230,1719519046032,-274.185959,0.00043835,14]
[330500231,1719519046041,-500.0,0.00043835,120]
[330500232,1719519046051,-500.0,0.00043835,120]
[330500233,1719519046060,-284.56196937,0.00043835,120]
[330500234,1719519046069,-500.0,0.00043835,120]
[330500235,1719519046078,-500.0,0.00043835,120]
[330500236,1719519046088,-500.0,0.00043835,120]
[330500237,1719519046097,-668.78,0.00043835,120]
[330500238,1719519046106,-516.71125607,0.00043835,120]
[330500239,1719519046116,-519.40420321,0.00043835,120]
[330500240,1719519046125,-500.0,0.00043835,120]
[330500241,1719519046136,-500.0,0.00043835,120]
[330500242,1719519046146,-506.7237298,0.00043835,120]
[330500243,1719519046157,-623.73,0.00043835,120]
[330500244,1719519046166,-500.0,0.00043835,120]
[330500246,1719519046175,-500.0,0.00043835,120]
[330500248,1719519046184,-1000.0,0.00043835,120]
[330500250,1719519046194,-500.0,0.00043835,120]
[330500251,1719519046203,-250.0,0.00043835,120]
[330500252,1719519046212,-823.26,0.00043835,120]
[330500253,1719519046222,-579.76675439,0.00043835,120]
[330500254,1719519046231,-500.0,0.00043835,25]
[330500256,1719519046240,-500.0,0.00043835,120]
[330500259,1719519046250,-585.14,0.00043835,120]
[330500260,1719519046259,-500.0,0.00043835,120]
[330500261,1719519046269,-500.0,0.00043835,120]
[330500262,1719519046278,-521.4160728,0.00043835,120]
[330500263,1719519046288,-500.0,0.00043835,120]
[330500264,1719519046298,-2838.87,0.00043835,120]
[330500265,1719519046308,-500.0,0.00043835,120]
[330500266,1719519046319,-500.0,0.00043835,120]
[330500267,1719519046328,-500.0,0.00043835,120]
[330500268,1719519046337,-500.0,0.00043835,120]
[330500269,1719519046346,-500.0,0.00043835,120]
[330500270,1719519046359,-500.0,0.00043835,30]
[330500272,1719519046368,-500.0,0.00043835,120]
[330500274,1719519046378,-500.0,0.00043835,120]
[330500275,1719519046388,-500.0,0.00043835,120]
[330500276,1719519046399,-528.83216877,0.00043835,120]
[330500277,1719519046409,-500.0,0.00043835,120]
[330500278,1719519046419,-1350.35,0.00043835,120]
[330500279,1719519046429,-500.0,0.00043835,120]
[330500280,1719519046439,-500.0,0.00043835,2]
[330500281,1719519046449,-500.0,0.00043835,120]
[330500282,1719519046458,-500.0,0.00043835,120]
[330500283,1719519046467,-178.5634382,0.00043835,120]
[330500284,1719519046477,-500.0,0.00043835,120]
[330500285,1719519046486,-500.0,0.00043835,120]
[330500286,1719519046495,-500.0,0.00043835,120]
[330500287,1719519046504,-500.0,0.00043835,120]
[330500288,1719519046516,-500.0,0.00043835,120]
[330500289,1719519046525,-500.0,0.00043835,120]
[330500290,1719519046535,-392.58637574,0.00043835,120]
[330500291,1719519046544,-846.94,0.00043835,120]
[330500292,1719519046553,-1881.58,0.00043835,120]
[330500293,1719519046562,-500.0,0.00043835,120]
[330500294,1719519046572,-500.0,0.00043835,120]
[330500295,1719519046581,-500.0,0.00043835,120]
[330500296,1719519046590,-500.0,0.00043835,120]
[330500297,1719519046599,-712.12,0.00043835,120]
[330500298,1719519046608,-500.0,0.00043835,120]
[330500299,1719519046617,-529.99,0.00043835,120]
[330500300,1719519046626,-500.0,0.00043835,120]
[330500301,1719519046635,-500.0,0.00043835,120]
[330500302,1719519046645,-418.66907582,0.00043835,120]
[330500303,1719519046654,-500.0,0.00043835,2]
[330500304,1719519046663,-500.0,0.00043835,120]
[330500305,1719519046672,-669.39,0.00043835,120]
[330500306,1719519046682,-500.0,0.00043835,120]
[330500307,1719519046691,-824.35,0.00043835,120]
[330500308,1719519046700,-500.0,0.00043835,120]
[330500309,1719519046709,-1091.5,0.00043835,120]
[330500310,1719519046718,-500.0,0.00043835,120]
[330500311,1719519046728,-500.0,0.00043835,120]
[330500312,1719519046737,-500.0,0.00043835,120]
[330500313,1719519046746,-648.33,0.00043835,120]
[330500314,1719519046756,-500.0,0.00043835,120]
[330500315,1719519046765,-500.0,0.00043835,120]
[330500316,1719519046774,-500.0,0.00043835,120]
[330500317,1719519046782,-500.0,0.00043835,120]
[330500318,1719519046791,-3756.31,0.00043835,120]
[330500319,1719519046801,-500.0,0.00043835,120]
[330500320,1719519046809,-500.0,0.00043835,120]
[330500321,1719519046819,-500.0,0.00043835,120]
[330500322,1719519046828,-500.0,0.00043835,120]
[330500323,1719519046837,-500.0,0.00043835,120]
[330500324,1719519046846,-500.0,0.00043835,120]
[330500325,1719519046855,-504.90669948,0.00043835,120]
[330500326,1719519046864,-500.0,0.00043835,120]
[330500327,1719519046873,-500.0,0.00043835,120]
[330500328,1719519046883,-500.0,0.00043835,120]
[330500329,1719519046892,-500.0,0.00043835,120]
[330500330,1719519046901,-500.0,0.00043835,120]
[330500331,1719519046911,-500.0,0.00043835,120]
[330500332,1719519046920,-500.0,0.00043835,120]
[330500333,1719519046929,-947.36,0.00043835,120]
[330500334,1719519046938,-500.0,0.00043835,120]
[330500335,1719519046947,-500.0,0.00043835,120]
[330500336,1719519046956,-500.0,0.00043835,120]
[330500337,1719519046966,-500.0,0.00043835,120]
[330500338,1719519046975,-500.0,0.00043835,120]
[330500339,1719519046984,-500.0,0.00043835,120]
[330500340,1719519046993,-500.0,0.00043835,120]
[330500341,1719519047003,-500.0,0.00043835,120]
[330500342,1719519047012,-500.0,0.00043835,120]
[330500343,1719519047022,-704.72,0.00043835,120]
[330500344,1719519047031,-500.0,0.00043835,120]
[330500345,1719519047041,-500.0,0.00043835,120]
[330500346,1719519047050,-649.88,0.00043835,120]
[330500347,1719519047060,-500.0,0.00043835,120]
[330500348,1719519047070,-500.0,0.00043835,120]
[330500349,1719519047079,-500.0,0.00043835,120]
[330500350,1719519047088,-1318.15,0.00043835,120]
[330500351,1719519047190,-500.0,0.00043835,120]
[330500352,1719519047199,-500.0,0.00043835,120]
[330500353,1719519047209,-500.0,0.00043835,120]
[330500354,1719519047219,-500.0,0.00043835,120]
[330500355,1719519047228,-500.0,0.00043835,120]
[330500356,1719519047238,-500.0,0.00043835,120]
[330500357,1719519047247,-500.0,0.00043835,120]
[330500358,1719519047256,-500.0,0.00043835,120]
[330500359,1719519047266,-500.0,0.00043835,120]
[330500360,1719519047275,-151.0,0.00043835,14]
[330500361,1719519047284,-644.17,0.00043835,120]
[330500362,1719519047293,-335.27248113,0.00043835,120]
[330500363,1719519047302,-151.0,0.00043835,14]
[330500364,1719519047316,-151.0,0.00043835,14]
[330500365,1719519047327,-151.0,0.00043835,14]
[330500366,1719519047336,-151.0,0.00043835,14]
[330500367,1719519047345,-500.0,0.00043835,120]
[330500368,1719519047356,-500.0,0.00043835,120]
[330500369,1719519047366,-151.0,0.00043835,14]
[330500370,1719519047375,-500.0,0.00043835,120]
[330500371,1719519047384,-500.0,0.00043835,120]
[330500372,1719519047395,-634.90955429,0.00043835,120]
[330500373,1719519047405,-643.99,0.00043835,120]
[330500374,1719519047414,-500.0,0.00043835,120]
[330500375,1719519047422,-500.0,0.00043835,120]
[330500376,1719519047432,-500.0,0.00043835,120]
[330500377,1719519047440,-500.0,0.00043835,120]
[330500378,1719519047450,-500.0,0.00043835,120]
[330500379,1719519047459,-683.42,0.00043835,120]
[330500380,1719519047467,-500.0,0.00043835,120]
[330500381,1719519047476,-500.0,0.00043835,120]